[Event "IX Iberoamericano Championship 2023"]
[Site "Panama City"]
[Date "2023.11.29"]
[Round "5.11"]
[White "Rodriguez Vila, Andres"]
[Black "Villalba, Marcelo"]
[Result "1/2-1/2"]
[ECO "A36"]
[WhiteElo "2405"]
[BlackElo "2241"]
[Annotator "TA"]
[PlyCount "74"]
[EventDate "2023.11.27"]
[EventType "swiss"]
[EventCountry "PAN"]
[SourceTitle "playchess.com"]
[Source "ChessBase"]
[SourceQuality "1"]
[TimeControl "5400+30"]

{[%evp 10,74,18,11,24,16,33,13,16,6,0,0,0,-24,14,-9,46,-4,-22,-6,-7,-109,-89,-217,-195,-224,-187,-196,-205,-263,-189,-185,-170,-167,-133,-165,-139,-161,-114,-97,-54,-64,95,-431,-431,-508,-190,-200,0,0,0,0,0,-8,-9,-14,0,0,0,0,0,0,0,0,0,0,0]} 1. c4 {[%emt 0:00:05]} c5 {[%emt 0:09:01]} 2. Nc3 {[%emt 0:00:11]} Nc6 {[%emt 0:00:17]} 3. g3 {[%emt 0:00:06]} g6 {[%emt 0:00:38]} 4. Bg2 {[%emt 0:00:12]} Bg7 {[%emt 0:00:08]} 5. a3 {[%emt 0:00:23]} a5 {[%emt 0:00:16]} 6. e3 {[%emt 0:00:44]} e5 {[%emt 0:00:11] A36: Symmetrical English vs ...g6: 4 Bg2 Bg7.} 7. Nge2 {[%emt 0:00:25][%cal Od2d4]} Nge7 {[%emt 0:00:59]} 8. O-O {[%emt 0:00:28]} O-O {[%emt 0:00:31]} 9. Nd5 {[%emt 0:01:18]} d6 {[%emt 0:02:31]} 10. Nec3 {[%emt 0:00:41]} Nxd5 {[%emt 0:08:00]} 11. cxd5 {[%emt 0:03:33]} Ne7 {[%emt 0:00:48]} 12. Rb1 {[%emt 0:00:06] [#]} b5 {[%emt 0:09:38] [#]} 13. b4 $146 {[%emt 0:01:32]} (13. Nxb5 $14 Ba6 14. a4) ({Predecessor:} 13. Nxb5 Ba6 14. a4 Qb6 15. Qb3 Rfb8 16. d3 Bxb5 17. Qxb5 Qxb5 18. axb5 Rxb5 19. e4 {1-0 Ubilava,E (2515)-Bellon Lopez,J (2445) Benasque 1990}) 13... cxb4 $11 {[%emt 0:02:06]} 14. axb4 {[%emt 0:00:08]} a4 {[%emt 0:00:38]} 15. f4 {[%emt 0:06:05]} (15. Nxb5 $11 {remains equal.} Ba6 16. Nc3 (16. Qxa4 $2 Qb6 $19)) 15... Bf5 {[%emt 0:16:09]} 16. Ra1 {[%emt 0:03:30]} (16. e4 $17 {was the only chance.} Qb6+ 17. Kh1) 16... Bd3 $19 {[%emt 0:01:36]} 17. Rf2 {[%emt 0:00:06] [#]} e4 $1 {[%emt 0:01:15][%mdl 512]} 18. Ra3 {[%emt 0:00:05]} f5 {[%emt 0:13:59]} 19. g4 {[%emt 0:00:06]} Rc8 {[%emt 0:05:16]} 20. gxf5 {[%emt 0:01:40]} gxf5 {[%emt 0:00:48] Hoping for ...Rf6.} 21. Bf1 {[%emt 0:05:22]} Qc7 {[%emt 0:12:42] aiming for ...Rf6.} 22. Bxd3 {[%emt 0:05:47]} exd3 {[%emt 0:00:08]} 23. Rg2 {[%emt 0:00:10]} Qc4 {[%emt 0:03:15]} 24. Bb2 {[%emt 0:04:33][%cal Oc3b5] Threatens to win with Nxb5!} Ng6 {[%emt 0:02:26]} (24... Qxb4 25. Nxa4 Ng6 26. Qa1 Bxb2 27. Nxb2 $11) (24... Rf7 {simplifies} 25. Qa1 Ng6 26. Na2 Bxb2 27. Qxb2 Qxd5 28. Nc3 Qb7) 25. h4 $1 {[%emt 0:01:33]} Nxh4 {[%emt 0:03:17]} (25... Qxb4 $15 {stays ahead.} 26. Qa1 Rf7) 26. Rh2 $2 {[%emt 0:00:26][%mdl 8192]} (26. Rxg7+ $1 $16 Kxg7 27. Qh5) 26... Qxb4 {[%emt 0:01:28]} 27. Ra2 {[%emt 0:00:40] [#]} Qb3 $2 {[%emt 0:00:35]} 28. Qh5 {[%emt 0:00:27] [#]} Rf6 $2 {[%emt 0:04:04]} 29. Rxh4 $11 {[%emt 0:01:53] The position is equal.} Rh6 {[%emt 0:01:34]} 30. Qxf5 {[%emt 0:01:38]} Rxc3 {[%emt 0:00:36]} (30... Rf8 $5 31. Qh3 $8 Rxh4 32. Qxh4 a3 {[%mdl 64] Deflection} 33. Bxa3 (33. Rxa3 $2 Qxb2 34. Ra2 Qc1+ 35. Kg2 Bxc3 $19) 33... Bxc3 34. Bxd6 Qb1+ 35. Kg2 Qxa2 36. Qg5+ Kh8 37. Bxf8 Qxd2+ 38. Kf3 Qd1+ 39. Ke4 Qa4+ 40. Kf3 (40. Kxd3 Qc4+ 41. Kc2 Bb4+ {[%mdl 64] Discovered Attack} 42. Kb2 Qc3+ 43. Kb1 Qd3+ 44. Kc1 Bd2+ 45. Kb2 Bc3+ 46. Kb3 Bd4+ {[%mdl 64] Discovered Attack} 47. Kb4 Qc4+ 48. Ka5 Qa4#) 40... Qd1+ 41. Ke4 Qa4+ 42. Kf3 (42. Kxd3 Qc4+ 43. Kc2 Bb4+ {[%mdl 64] Discovered Attack} 44. Kb2 Qc3+ 45. Kb1 Qd3+ 46. Kc1 Bd2+ 47. Kb2 Bc3+ 48. Kb3 Bd4+ {[%mdl 64] Discovered Attack} 49. Kb4 Qc4+ 50. Ka5 Qa4#) 42... Qd1+ $11) 31. Bxc3 {[%emt 0:01:47] White wants to mate with Qc8+.} (31. Rxh6 $5 Qd1+ $8 32. Kh2 Qe2+ 33. Kh3 (33. Kg3 Qe1+ 34. Kg4 Qe2+ 35. Kh3 Qf3+ 36. Kh2 Qf2+ 37. Kh1 Qe1+ 38. Kh2 Qxd2+ 39. Kh3 Qxe3+ 40. Kh4 Qf2+ 41. Kh3 Qf3+ 42. Kh4 Qh1+ 43. Kg4 Qg2+ 44. Kh5 Qh2+ 45. Kg4 Qg2+ 46. Kh5 Qh2+ 47. Kg4 Qg2+ $11) 33... Qf3+ 34. Kh4 Qf2+ 35. Kh5 Qh2+ 36. Kg4 Qe2+ 37. Kh4 (37. Kg3 Qe1+ 38. Kh3 Qh1+ 39. Kg4 Qg2+ 40. Kh5 Qh2+ 41. Kg4 Qg2+ 42. Kh5 Qh2+ $11) 37... Qf2+ 38. Kh5 Qh2+ 39. Kg4 Qg2+ 40. Kh5 Qh2+ $11) 31... Qd1+ {[%emt 0:00:05]} 32. Kf2 {[%emt 0:00:31]} Qe2+ {[%emt 0:00:17][%mdl 1024] Black has compensation.} (32... Rxh4 {leads to mate.} 33. Qe6+ (33. Qxd3 $2 {is a self mate.} Rh2+ 34. Kg3 Qg1+ 35. Kf3 Qg2#) 33... Kf8 34. Qxd6+ Kg8 35. Qe6+ Kh8 36. Qe8#) 33. Kg3 {[%emt 0:00:04] Intending Qc8+ and mate.} Rg6+ {[%emt 0:01:15]} 34. Rg4 {[%emt 0:00:13] Qc8+ would kill now.} Qe1+ {[%emt 0:00:13]} 35. Kf3 {[%emt 0:00:16] Threatening mate with Qc8+.} Qh1+ {[%emt 0:00:30]} 36. Kg3 {[%emt 0:00:23]} Qg1+ {[%emt 0:00:28]} 37. Kf3 {[%emt 0:00:07] White threatens Qc8+ and mate.} Qh1+ {[%emt 0:00:44] Weighted Error Value: White=0.33/Black=0.29 (precise)} 1/2-1/2

[Event "IX Iberoamericano Championship 2023"]
[Site "Panama City"]
[Date "2023.11.29"]
[Round "5.12"]
[White "Zambrana, Osvaldo"]
[Black "Ortiz Verdezoto, Anahi"]
[Result "1-0"]
[ECO "C55"]
[WhiteElo "2400"]
[BlackElo "2175"]
[Annotator "TA"]
[PlyCount "75"]
[EventDate "2023.11.27"]
[EventType "swiss"]
[EventCountry "PAN"]
[SourceTitle "playchess.com"]
[Source "ChessBase"]
[SourceQuality "1"]
[TimeControl "5400+30"]

{[%evp 13,75,37,30,35,43,19,31,8,10,6,8,8,13,12,17,13,16,14,27,22,27,31,25,24,23,0,4,0,35,23,44,29,28,34,43,25,50,47,62,52,56,60,124,120,261,246,509,356,349,316,336,327,371,287,283,243,268,231,293,237,324,254,405,387]} 1. e4 {[%emt 0:04:36]} e5 {[%emt 0:00:10]} 2. Nf3 {[%emt 0:00:09]} Nc6 {[%emt 0:00:18]} 3. Bc4 {[%emt 0:00:22]} Nf6 {[%emt 0:00:13]} 4. d3 {[%emt 0:00:03]} Be7 {[%emt 0:00:50]} 5. O-O {[%emt 0:00:13]} d6 {[%emt 0:00:26]} 6. a4 {[%emt 0:00:07]} O-O {[%emt 0:00:09]} 7. Re1 {[%emt 0:00:30]} Na5 {[%emt 0:00:12]} 8. Ba2 {[%emt 0:00:12] C55: Two Knights: 4 d3, 4 d4 exd4 5 e5 and Max Lange Attack.} c5 {[%emt 0:00:07]} 9. Bg5 {[%emt 0:00:06]} Be6 {[%emt 0:09:23]} 10. Bxf6 {[%emt 0:00:55] White is slightly better.} Bxf6 {[%emt 0:00:07]} 11. Nc3 {[%emt 0:00:08]} g6 {[%emt 0:03:01]} 12. Nd5 {[%emt 0:00:17]} Bg7 {[%emt 0:00:14]} 13. c3 {[%emt 0:00:09]} Nc6 {[%emt 0:00:27]} 14. h3 {[%emt 0:08:46] [#]} Rb8 $146 {[%emt 0:11:09]} ({Predecessor:} 14... Qd7 15. Rb1 h6 16. b4 Kh7 17. b5 Ne7 18. d4 Bxd5 19. exd5 exd4 20. cxd4 Nf5 21. dxc5 dxc5 {1-0 Cubas,J (2428)-Mazziotti Irigoyen,G (2311) Torre Blanca 2006 (9)}) 15. Qd2 {[%emt 0:04:01]} h6 {[%emt 0:05:37]} 16. b4 {[%emt 0:00:58]} cxb4 {[%emt 0:00:13]} 17. cxb4 {[%emt 0:00:18]} Ne7 {[%emt 0:02:03]} 18. Nxe7+ {[%emt 0:02:58]} Qxe7 {[%emt 0:00:03]} 19. Bc4 {[%emt 0:00:10]} Rfd8 {[%emt 0:04:05]} 20. Qa2 {[%emt 0:01:09]} Rd7 {[%emt 0:14:47]} 21. Rac1 {[%emt 0:01:03]} Rbd8 {[%emt 0:01:23]} 22. Bd5 {[%emt 0:04:02]} Bxd5 {[%emt 0:02:06]} 23. Qxd5 {[%emt 0:00:03]} Rc7 {[%emt 0:00:24]} 24. Rc4 {[%emt 0:05:06]} Qd7 {[%emt 0:02:48]} 25. Nd2 {[%emt 0:04:56][%cal Bf3d2,Bd2c4,Bc4e3,Be3d5][%mdl 32]} Rxc4 {[%emt 0:06:13]} 26. Nxc4 {[%emt 0:02:15]} Qxa4 {[%emt 0:07:18]} 27. Qxb7 {[%emt 0:00:44]} Bf8 {[%emt 0:00:55]} (27... Qd7 $14 28. Qd5 Qc7) 28. Ne3 $16 {[%emt 0:08:09] White has more active pieces.} Qa3 {[%emt 0:09:31] Loses the game.} (28... Qd7 $16 {is a better defense.} 29. Qa6 Rc8) 29. Nd5 $18 {[%emt 0:03:49]} Kg7 $2 {[%emt 0:06:28]} (29... Bg7 30. Kh2 Rf8) 30. Re3 {[%emt 0:01:02]} Qc1+ {[%emt 0:02:04]} 31. Kh2 {[%emt 0:48:44] [#] Hoping for Rf3.} Qc8 {[%emt 0:00:04]} 32. Qxa7 {[%emt 0:00:00]} Rd7 {[%emt 0:00:16]} 33. Qa2 {[%emt 0:00:00] Black must now prevent Nb6.} Rb7 {[%emt 0:00:23] Dodges Nb6} 34. Qc4 {[%emt 0:00:00]} Qb8 {[%emt 0:00:46] Black is weak on the light squares} 35. Rf3 {[%emt 0:00:00]} h5 {[%emt 0:00:54]} 36. h4 {[%emt 0:00:00]} Qd8 {[%emt 0:01:10]} 37. g3 {[%emt 0:00:00]} Qb8 {[%emt 0:01:48]} (37... Qd7 $142 38. Kg2 Qb5) 38. Qc6 {[%emt 0:00:00] Weighted Error Value: White=0.26 (precise) /Black=0.35} 1-0

[Event "IX Iberoamericano Championship 2023"]
[Site "Panama City"]
[Date "2023.11.29"]
[Round "5.13"]
[White "Ynojosa Aponte, Felix Jose"]
[Black "Cabezas Solano, David Alejandro"]
[Result "1-0"]
[ECO "D36"]
[WhiteElo "2393"]
[BlackElo "2171"]
[Annotator "RC"]
[PlyCount "111"]
[EventDate "2023.11.27"]
[EventType "swiss"]
[EventCountry "PAN"]
[SourceTitle "playchess.com"]
[Source "ChessBase"]
[SourceQuality "1"]
[TimeControl "5400+30"]

1. c4 {[%emt 0:03:36]} e6 {[%emt 0:00:14]} 2. Nc3 {[%emt 0:00:52]} d5 {[%emt 0:00:12]} 3. d4 {[%emt 0:00:05]} Nf6 {[%emt 0:00:05]} 4. cxd5 {[%emt 0:00:02]} exd5 {[%emt 0:00:05]} 5. Bg5 {[%emt 0:00:03]} c6 {[%emt 0:00:18]} 6. Qc2 {[%emt 0:00:05]} Be7 {[%emt 0:00:11]} 7. e3 {[%emt 0:00:05]} Nbd7 {[%emt 0:00:10]} 8. Nf3 {[%emt 0:00:20]} O-O {[%emt 0:00:08]} 9. Bd3 {[%emt 0:00:02]} Re8 {[%emt 0:00:05]} 10. O-O {[%emt 0:00:16]} Nf8 {[%emt 0:00:08]} 11. Rab1 {[%emt 0:00:42]} Ng6 {[%emt 0:00:28]} 12. Bxf6 {[%emt 0:01:16]} Bxf6 {[%emt 0:00:52]} 13. b4 {[%emt 0:00:01]} a6 {[%emt 0:04:55]} 14. a4 {[%emt 0:00:19]} Bg4 {[%emt 0:00:45]} 15. b5 {[%emt 0:01:58]} Bxf3 {[%emt 0:06:08]} 16. Bxg6 {[%emt 0:00:13]} hxg6 {[%emt 0:01:18]} 17. gxf3 {[%emt 0:00:05]} Qc8 {[%emt 0:08:42]} 18. bxc6 {[%emt 0:00:37]} bxc6 {[%emt 0:00:10]} 19. Ne2 {[%emt 0:00:56]} Qh3 {[%emt 0:07:02]} 20. Ng3 {[%emt 0:02:40]} Re6 {[%emt 0:04:30]} 21. Rb6 {[%emt 0:00:44]} Rc8 {[%emt 0:04:35]} 22. Qd3 {[%emt 0:03:20]} Bd8 {[%emt 0:07:35]} 23. Rxa6 {[%emt 0:02:00]} Bc7 {[%emt 0:04:44]} 24. f4 {[%emt 0:03:39]} Rce8 {[%emt 0:05:31]} 25. Rc1 {[%emt 0:03:16]} g5 {[%emt 0:09:09]} 26. Raxc6 {[%emt 0:04:25]} Rxc6 {[%emt 0:10:16]} 27. Rxc6 {[%emt 0:00:05]} Bxf4 {[%emt 0:01:45]} 28. Qf5 {[%emt 0:02:19]} Qxf5 {[%emt 0:04:41]} 29. Nxf5 {[%emt 0:00:02]} g6 {[%emt 0:04:20]} 30. Nd6 {[%emt 0:00:44]} Bxd6 {[%emt 0:02:30]} 31. Rxd6 {[%emt 0:00:04]} Ra8 {[%emt 0:00:05]} 32. Rxd5 {[%emt 0:00:03]} Rxa4 {[%emt 0:00:05]} 33. Rxg5 {[%emt 0:00:01]} Kf8 {[%emt 0:00:10]} 34. Re5 {[%emt 0:00:11]} f5 {[%emt 0:00:44]} 35. h4 {[%emt 0:01:06]} Kf7 {[%emt 0:00:35]} 36. h5 {[%emt 0:00:08]} Kf6 {[%emt 0:00:46]} 37. hxg6 {[%emt 0:00:03]} Kxg6 {[%emt 0:00:07]} 38. Kg2 {[%emt 0:00:03]} Ra2 {[%emt 0:00:46]} 39. Kg3 {[%emt 0:00:10]} Rd2 {[%emt 0:00:37]} 40. f3 {[%emt 0:00:11]} Kg5 {[%emt 0:00:42]} 41. e4 {[%emt 0:00:12]} Rxd4 {[%emt 0:00:13]} 42. Rxf5+ {[%emt 0:00:01]} Kg6 {[%emt 0:00:06]} 43. Kg4 {[%emt 0:00:11]} Rd1 {[%emt 0:00:18]} 44. Rd5 {[%emt 0:00:14]} Rf1 {[%emt 0:00:12]} 45. Rd6+ {[%emt 0:00:02]} Kf7 {[%emt 0:00:04]} 46. f4 {[%emt 0:00:03]} Rg1+ {[%emt 0:00:16]} 47. Kf5 {[%emt 0:00:02]} Ke7 {[%emt 0:00:12]} 48. Ra6 {[%emt 0:00:09]} Rb1 {[%emt 0:00:29]} 49. Ra7+ {[%emt 0:00:05]} Ke8 {[%emt 0:00:24]} 50. e5 {[%emt 0:00:04]} Rh1 {[%emt 0:00:13]} 51. Kg5 {[%emt 0:00:21]} Rh2 {[%emt 0:00:18]} 52. f5 {[%emt 0:00:05]} Rh1 {[%emt 0:00:15]} 53. e6 {[%emt 0:00:18]} Rh2 {[%emt 0:00:26]} 54. Kf6 {[%emt 0:00:10]} Rh6+ {[%emt 0:00:04]} 55. Ke5 {[%emt 0:00:06]} Rh5 {[%emt 0:00:43]} 56. Kd6 {[%emt 0:00:07]} 1-0

[Event "IX Iberoamericano Championship 2023"]
[Site "Panama City"]
[Date "2023.11.29"]
[Round "5.14"]
[White "Bravo Mallco, Kate Azumi"]
[Black "Cori, Jorge"]
[Result "1/2-1/2"]
[ECO "C55"]
[WhiteElo "2004"]
[BlackElo "2626"]
[Annotator "TA"]
[PlyCount "123"]
[EventDate "2023.11.27"]
[EventType "swiss"]
[EventCountry "PAN"]
[SourceTitle "playchess.com"]
[Source "ChessBase"]
[SourceQuality "1"]
[TimeControl "5400+30"]

{[%evp 9,123,17,38,3,18,16,20,19,28,4,9,6,10,0,7,0,0,0,8,0,0,0,10,12,40,4,14,16,12,4,10,0,29,0,0,0,0,0,0,-25,-25,-25,-27,-43,-45,-47,-34,-56,-35,-44,-46,-46,-40,-40,-35,-42,-45,-43,-34,-36,-36,-45,-42,-47,-45,-52,-27,-69,-69,-79,-66,-66,-66,-66,-66,-66,-66,-66,-66,-79,-65,-68,-62,-79,-60,-60,0,0,0,-60,-60,-60,-54,-66,-60,-60,0,0,0,0,0,0,0,0,3,6,249,249,251,251,249,0,214,0,236,0]} 1. e4 {[%emt 0:11:47]} e5 {[%emt 0:00:12]} 2. Nf3 {[%emt 0:00:20]} Nc6 {[%emt 0:00:05]} 3. Bc4 {[%emt 0:00:18]} Nf6 {[%emt 0:00:05]} 4. d3 {[%emt 0:01:45]} h6 {[%emt 0:00:06]} 5. Nbd2 {[%emt 0:02:35][%cal Bb1d2,Bd2f1,Bf1g3][%mdl 32]} d6 {[%emt 0:01:17]} 6. Nf1 {[%emt 0:02:42] C55: Two Knights: 4 d3, 4 d4 exd4 5 e5 and Max Lange Attack.} g6 {[%emt 0:02:18]} 7. c3 {[%emt 0:00:39]} Bg7 {[%emt 0:00:06]} 8. Ng3 {[%emt 0:01:47] The position is equal.} a6 {[%emt 0:00:52]} 9. Bb3 {[%emt 0:01:16]} O-O {[%emt 0:01:33]} 10. O-O {[%emt 0:00:12]} d5 {[%emt 0:13:21] [#]} 11. Be3 $146 {[%emt 0:15:47]} ({Predecessor:} 11. Qe2 Re8 12. Bd2 Be6 13. h3 Na5 14. c4 dxc4 15. dxc4 Nc6 16. Ba4 Bd7 17. Bxc6 Bxc6 {½-½ Guth,T (2200)-Laske,M Oberliga Nord O 9798 1997}) 11... Be6 {[%emt 0:06:10]} 12. h3 {[%emt 0:17:23]} Re8 {[%emt 0:00:46]} 13. Bc2 {[%emt 0:02:15]} Qe7 {[%emt 0:04:17]} 14. Re1 {[%emt 0:01:22]} Rad8 {[%emt 0:00:06]} 15. Qc1 {[%emt 0:00:38]} dxe4 {[%emt 0:11:22]} 16. dxe4 {[%emt 0:00:12]} Kh7 {[%emt 0:00:04]} 17. Rd1 {[%emt 0:09:22]} Rd6 {[%emt 0:01:28]} 18. Rd2 {[%emt 0:06:19]} Rxd2 {[%emt 0:04:33]} 19. Qxd2 {[%emt 0:00:32]} Rd8 {[%emt 0:00:18]} 20. Qe1 {[%emt 0:03:40]} Ne8 {[%emt 0:00:10]} 21. Nd2 {[%emt 0:01:14]} (21. Nf5 {is more complex.} Qf6 22. Nxg7 Kxg7 23. Qe2) 21... Nd6 {[%emt 0:00:29]} 22. Bc5 {[%emt 0:01:13]} b6 {[%emt 0:01:55]} 23. Bxd6 {[%emt 0:01:39]} Qxd6 {[%emt 0:00:58]} ({Much less strong is} 23... Rxd6 24. Nf5 gxf5 25. exf5 Bxf5 26. Bxf5+ Kg8 27. Bc2 $16) 24. Ndf1 {[%emt 0:00:27]} Na5 {[%emt 0:04:54][%cal Bc6a5,Ba5b7,Bb7d6][%mdl 32]} 25. Rd1 {[%emt 0:07:08]} Qf8 {[%emt 0:01:55]} 26. Rxd8 {[%emt 0:00:45]} Qxd8 {[%emt 0:00:04]} 27. b3 {[%emt 0:00:15]} Qd6 {[%emt 0:08:01]} 28. Qd2 {[%emt 0:02:06]} Nb7 {[%emt 0:07:02]} 29. Qxd6 {[%emt 0:07:13]} Nxd6 {[%emt 0:00:05]} 30. Ne3 {[%emt 0:00:04]} Kg8 {[%emt 0:00:31]} 31. Kf1 {[%emt 0:00:57]} Kf8 {[%emt 0:00:51]} 32. Ke1 {[%emt 0:01:00]} Ke8 {[%emt 0:00:05]} 33. Ngf1 {[%emt 0:00:55]} h5 {[%emt 0:00:53]} 34. Nd2 {[%emt 0:00:29]} b5 {[%emt 0:02:56]} 35. Bd3 {[%emt 0:00:58]} c6 {[%emt 0:00:50]} 36. Ke2 {[%emt 0:00:13]} Kd7 {[%emt 0:00:07]} 37. c4 {[%emt 0:00:54]} b4 {[%emt 0:02:37]} 38. Nc2 {[%emt 0:00:31]} a5 {[%emt 0:00:04]} 39. Nf3 {[%emt 0:00:35]} f6 {[%emt 0:02:36]} 40. Ne3 {[%emt 0:00:25]} Nb7 {[%emt 0:01:50]} 41. Bc2 {[%emt 0:00:04]} Nc5 {[%emt 0:00:26]} 42. h4 {[%emt 0:00:40]} Bh6 {[%emt 0:00:21]} 43. g3 {[%emt 0:00:36]} Kd6 {[%emt 0:01:22]} 44. Bb1 {[%emt 0:00:42]} Nb7 {[%emt 0:07:15]} 45. Bd3 {[%emt 0:00:15]} Kc5 {[%emt 0:00:06]} 46. Bb1 {[%emt 0:00:47]} Nd6 {[%emt 0:00:37]} 47. Ne1 {[%emt 0:00:20]} Kd4 {[%emt 0:01:11][%cal Oh6e3] aiming for ...Bxe3!} 48. Nf3+ {[%emt 0:00:13]} Kc5 {[%emt 0:00:10]} 49. Ne1 $1 {[%emt 0:00:02]} Bf7 {[%emt 0:07:02]} 50. Nf3 {[%emt 0:01:04]} Bg8 {[%emt 0:04:34]} 51. Nd2 {[%emt 0:00:47]} Be6 {[%emt 0:00:19]} 52. Nf3 {[%emt 0:00:36]} Bg4 {[%emt 0:02:14]} (52... Kb6 $15) 53. Nxg4 $11 {[%emt 0:00:30]} hxg4 {[%emt 0:00:02][%mdl 4096] Endgame KBN-KBN} 54. Nh2 {[%emt 0:00:25]} f5 {[%emt 0:00:01]} 55. f3 {[%emt 0:00:36]} gxf3+ {[%emt 0:01:13]} 56. Nxf3 {[%emt 0:00:09]} fxe4 {[%emt 0:00:16]} 57. Nxe5 {[%emt 0:00:18]} Kd4 $2 {[%emt 0:00:02] [#]} (57... g5 $1 $11 {and Black stays safe.}) 58. Nxc6+ $18 {[%emt 0:00:25]} ({Don't take} 58. Nxg6 $6 Bc1 $16) 58... Kc5 {[%emt 0:00:39]} 59. Nd8 {[%emt 0:01:06]} (59. Nxa5 g5 $11) 59... Kd4 {[%emt 0:00:16]} 60. Nc6+ {[%emt 0:00:26]} Kc5 {[%emt 0:00:04]} 61. Nd8 {[%emt 0:00:36]} ({Worse is} 61. Nxa5 g5 $11) 61... Kd4 {[%emt 0:01:08] [#]} 62. Nc6+ $2 {[%emt 0:00:07] Weighted Error Value: White=0.15 (very precise) /Black=0.16 (very precise)} (62. g4 $1 $18 {[%cal Rg4g5]}) 1/2-1/2

[Event "IX Iberoamericano Championship 2023"]
[Site "Panama City"]
[Date "2023.11.29"]
[Round "5.15"]
[White "Lombardo Batista, Elias"]
[Black "Ordaz Valdes, Lisandra Teresa"]
[Result "0-1"]
[ECO "A21"]
[WhiteElo "1755"]
[BlackElo "2306"]
[Annotator "RC"]
[PlyCount "70"]
[EventDate "2023.11.27"]
[EventType "swiss"]
[EventCountry "PAN"]
[SourceTitle "playchess.com"]
[Source "ChessBase"]
[SourceQuality "1"]
[TimeControl "5400+30"]

1. c4 {[%emt 0:00:08]} e5 {[%emt 0:00:04]} 2. g3 {[%emt 0:00:13]} d6 {[%emt 0:00:06]} 3. Nc3 {[%emt 0:00:39]} Be7 {[%emt 0:00:11]} 4. Bg2 {[%emt 0:00:20]} f5 {[%emt 0:00:26]} 5. d4 {[%emt 0:00:39]} Nf6 {[%emt 0:00:34]} 6. dxe5 {[%emt 0:02:39]} dxe5 {[%emt 0:00:03]} 7. Qxd8+ {[%emt 0:01:23]} Bxd8 {[%emt 0:00:02]} 8. Nf3 {[%emt 0:02:12]} Nc6 {[%emt 0:02:47]} 9. O-O {[%emt 0:03:23]} e4 {[%emt 0:01:39]} 10. Ne1 {[%emt 0:01:42]} Be6 {[%emt 0:01:10]} 11. b3 {[%emt 0:00:28]} Be7 {[%emt 0:01:16]} 12. Nc2 {[%emt 0:01:10]} O-O-O {[%emt 0:04:39]} 13. Be3 {[%emt 0:05:40]} Ng4 {[%emt 0:08:31]} 14. Rad1 {[%emt 0:01:08]} Nxe3 {[%emt 0:01:29]} 15. Nxe3 {[%emt 0:00:03]} Bf6 {[%emt 0:09:51]} 16. Ned5 {[%emt 0:01:52]} Be5 {[%emt 0:00:53]} 17. e3 {[%emt 0:02:37]} Rhe8 {[%emt 0:07:01]} 18. Rfe1 {[%emt 0:07:07]} Nb4 {[%emt 0:07:53]} 19. f4 {[%emt 0:06:48]} exf3 {[%emt 0:02:38]} 20. Bxf3 {[%emt 0:00:02]} c6 {[%emt 0:00:22]} 21. Nxb4 {[%emt 0:09:07]} Bxc3 {[%emt 0:00:30]} 22. Nc2 {[%emt 0:00:01]} Bxe1 {[%emt 0:00:22]} 23. Rxe1 {[%emt 0:00:02]} Rd2 {[%emt 0:01:23]} 24. Re2 {[%emt 0:00:32]} Rxe2 {[%emt 0:06:59]} 25. Bxe2 {[%emt 0:00:02]} Kc7 {[%emt 0:01:35]} 26. Kf2 {[%emt 0:00:17]} Kd6 {[%emt 0:00:49]} 27. Bd3 {[%emt 0:00:21]} Bd7 {[%emt 0:00:42]} 28. b4 {[%emt 0:01:40]} a5 {[%emt 0:01:03]} 29. a3 {[%emt 0:01:07]} axb4 {[%emt 0:00:25]} 30. axb4 {[%emt 0:00:02]} Ra8 {[%emt 0:00:20]} 31. Ke2 {[%emt 0:01:09]} Ke5 {[%emt 0:02:52]} 32. h4 {[%emt 0:02:10]} c5 {[%emt 0:00:38]} 33. b5 {[%emt 0:00:39]} Be8 {[%emt 0:02:22]} 34. Kd2 {[%emt 0:03:03]} Rd8 {[%emt 0:00:36]} 35. Kc3 {[%emt 0:00:21]} Rd6 {[%emt 0:00:08]} 0-1

[Event "IX Iberoamericano Championship 2023"]
[Site "Panama City"]
[Date "2023.11.29"]
[Round "5.16"]
[White "Solares Orozco, Kebert"]
[Black "Leal Escamilla, Daniel Zinedine"]
[Result "1-0"]
[ECO "D02"]
[WhiteElo "2312"]
[BlackElo "1748"]
[Annotator "RC"]
[PlyCount "103"]
[EventDate "2023.11.27"]
[EventType "swiss"]
[EventCountry "PAN"]
[SourceTitle "playchess.com"]
[Source "ChessBase"]
[SourceQuality "1"]
[TimeControl "5400+30"]

1. d4 {[%emt 0:03:14]} d5 {[%emt 0:00:18]} 2. Nf3 {[%emt 0:00:09]} Nf6 {[%emt 0:00:15]} 3. g3 {[%emt 0:00:10]} h6 {[%emt 0:00:28]} 4. c4 {[%emt 0:00:10]} e6 {[%emt 0:00:07]} 5. Bg2 {[%emt 0:00:05]} Bd6 {[%emt 0:01:06]} 6. O-O {[%emt 0:00:08]} O-O {[%emt 0:00:17]} 7. Qc2 {[%emt 0:00:10]} Nc6 {[%emt 0:04:22]} 8. Nbd2 {[%emt 0:06:07]} e5 {[%emt 0:20:21]} 9. dxe5 {[%emt 0:00:18]} Nxe5 {[%emt 0:11:04]} 10. Nxe5 {[%emt 0:00:18]} Bxe5 {[%emt 0:00:06]} 11. cxd5 {[%emt 0:00:07]} Re8 {[%emt 0:05:19]} 12. Nc4 {[%emt 0:01:36]} Bd4 {[%emt 0:04:46]} 13. Rd1 {[%emt 0:08:05]} Bc5 {[%emt 0:09:29]} 14. Be3 {[%emt 0:00:15]} Bxe3 {[%emt 0:03:39]} 15. Nxe3 {[%emt 0:00:04]} Bd7 {[%emt 0:02:27]} 16. Rac1 {[%emt 0:00:14]} Rc8 {[%emt 0:01:19]} 17. Rd2 {[%emt 0:01:49]} Qe7 {[%emt 0:10:24]} 18. Qc5 {[%emt 0:02:39]} Qxc5 {[%emt 0:05:37]} 19. Rxc5 {[%emt 0:01:23]} Ne4 {[%emt 0:00:41]} 20. Bxe4 {[%emt 0:00:08]} Rxe4 {[%emt 0:00:04]} 21. Rc3 {[%emt 0:02:34]} c6 {[%emt 0:05:18]} 22. f3 {[%emt 0:02:23]} Ree8 {[%emt 0:04:02]} 23. Kf2 {[%emt 0:01:26]} Kf8 {[%emt 0:05:50]} 24. Ra3 {[%emt 0:06:53]} a6 {[%emt 0:01:52]} 25. Rb3 {[%emt 0:00:07]} b5 {[%emt 0:01:12]} 26. Ra3 {[%emt 0:00:20]} Ra8 {[%emt 0:00:44]} 27. dxc6 {[%emt 0:00:10]} Bxc6 {[%emt 0:00:02]} 28. Rd6 {[%emt 0:00:16]} Re6 {[%emt 0:02:34]} 29. Rxe6 {[%emt 0:00:10]} fxe6 {[%emt 0:00:01]} 30. Rc3 {[%emt 0:00:10]} Bd7 {[%emt 0:00:47]} 31. Ng4 {[%emt 0:00:32]} Ra7 {[%emt 0:00:50]} 32. Ne5 {[%emt 0:00:15]} Be8 {[%emt 0:00:08]} 33. e4 {[%emt 0:01:01]} Ke7 {[%emt 0:00:32]} 34. Ke3 {[%emt 0:00:09]} b4 {[%emt 0:00:56]} 35. Rc5 {[%emt 0:03:21]} a5 {[%emt 0:00:25]} 36. Kd4 {[%emt 0:00:17]} Ba4 {[%emt 0:00:35]} 37. Nc4 {[%emt 0:01:44]} Bd1 {[%emt 0:00:29]} 38. Nxa5 {[%emt 0:00:22]} Kd6 {[%emt 0:00:32]} 39. e5+ {[%emt 0:02:26]} Kd7 {[%emt 0:00:07]} 40. f4 {[%emt 0:00:21]} Bf3 {[%emt 0:00:36]} 41. Kc4 {[%emt 0:02:13]} Bd5+ {[%emt 0:00:28]} 42. Kxb4 {[%emt 0:00:02]} Bxa2 {[%emt 0:00:18]} 43. b3 {[%emt 0:00:20]} Bb1 {[%emt 0:00:13]} 44. Kb5 {[%emt 0:00:29]} Bd3+ {[%emt 0:00:29]} 45. Kb6 {[%emt 0:00:35]} Ra6+ {[%emt 0:00:58]} 46. Kb7 {[%emt 0:00:02]} g5 {[%emt 0:00:40]} 47. b4 {[%emt 0:58:13]} gxf4 {[%emt 0:00:25]} 48. gxf4 {[%emt 0:00:00]} h5 {[%emt 0:00:20]} 49. f5 {[%emt 0:00:00]} exf5 {[%emt 0:00:52]} 50. Rd5+ {[%emt 0:00:00]} Ke7 {[%emt 0:00:11]} 51. Rxd3 {[%emt 0:00:00]} Re6 {[%emt 0:00:11]} 52. Rf3 {[%emt 0:00:00]} 1-0